bitfinex-derivatives/quotes_ETHF0:USTF0_20220108
["timestamp","ask_amount","ask_price","bid_price","bid_amount"]
[1641608530574,0.77294196,3208.8,3208.7,0.14116941]
[1641608530778,0.77294196,3208.8,3208.6,0.14116941]
[1641608531174,0.77294196,3208.8,3208.5,3.41459647]
[1641608531776,0.6296,3208.8,3208.6,0.14117445]
[1641608532176,16.66250289,3208.7,3208.5,1.40980647]
[1641608532377,15.104788,3208.7,3208.2,0.79136001]
[1641608532576,16.27933103,3208.7,3208.0,0.79136001]
[1641608532777,2.00479,3208.1,3208.0,0.79136001]
[1641608532975,2.60109,3208.1,3208.0,0.79136001]
[1641608533176,2.60109,3208.1,3208.0,1.61946247]
[1641608533776,2.60109,3208.1,3208.0,1.88041447]
[1641608534178,2.74443196,3208.1,3208.0,1.08905446]
[1641608535277,2.00479,3208.1,3208.0,1.08905446]
[1641608536680,2.00479,3208.1,3208.0,0.82810246]
[1641608537679,2.15041538,3208.1,3208.0,0.82810246]
[1641608538081,2.15041538,3208.1,3208.0,1.08905446]
[1641608539582,2.00479,3208.1,3208.0,1.08905446]
[1641608539785,2.00479,3208.1,3208.0,1.90455446]
[1641608543591,2.00479,3208.1,3208.0,3.19362613]
[1641608544992,2.00479,3208.1,3208.0,2.69591447]
[1641608545194,2.00479,3208.1,3208.0,1.90455446]
[1641608545593,2.00479,3208.1,3208.0,2.97591849]
[1641608545994,2.00479,3208.1,3208.0,1.90455446]
[1641608546994,2.00479,3208.1,3208.0,2.97945121]
[1641608547696,2.00479,3208.1,3208.0,4.26851227]
[1641608548398,2.00479,3208.1,3208.0,3.19361552]
[1641608550998,2.00479,3208.1,3208.0,2.69591447]
[1641608551199,2.00479,3208.1,3208.0,1.90455446]
[1641608552498,2.00479,3208.1,3208.0,2.04583809]
[1641608556003,2.00479,3208.1,3208.0,1.78488609]
[1641608556206,2.00479,3208.1,3208.0,0.96938609]
[1641608557108,2.00479,3208.1,3208.0,1.23033809]
[1641608558209,2.14874418,3208.1,3208.0,1.23033809]
[1641608559016,2.00479,3208.1,3208.0,1.23033809]
[1641608559317,2.00479,3208.1,3208.0,2.52284903]
[1641608559517,0.640787,3208.3,3208.0,2.52284903]
[1641608560119,0.640787,3208.3,3208.1,0.14128363]
[1641608560819,0.640787,3208.3,3208.2,0.260952]
[1641608561418,0.640787,3208.3,3208.2,0.40223563]
[1641608561820,2.645577,3208.4,3208.2,0.40223563]
[1641608562122,2.645577,3208.4,3208.3,0.14128363]
[1641608562922,2.00479,3208.4,3208.3,0.14128363]
[1641608563523,2.15358507,3208.4,3208.3,0.14128363]
[1641608566628,3.18915067,3208.4,3208.3,0.14128363]
[1641608569231,2.15358507,3208.4,3208.3,0.14128363]
[1641608571533,2.15358507,3208.4,3208.2,0.14128363]
[1641608572033,2.15358507,3208.4,3208.3,0.14128363]
[1641608572733,2.15358507,3208.4,3208.2,0.14128363]
[1641608572934,2.15358507,3208.4,3208.3,0.14128363]
[1641608573332,2.15358507,3208.4,3208.2,0.14128363]
[1641608573534,0.264788,3208.3,3208.1,0.79481006]
[1641608573734,2.15358507,3208.4,3208.1,0.79481006]
[1641608573934,2.15358507,3208.4,3208.2,0.260952]
[1641608574134,0.14879507,3208.3,3208.2,0.260952]
[1641608575236,2.00479,3208.4,3208.2,1.55345192]
[1641608576236,2.00479,3208.4,3208.2,1.05576206]
[1641608577237,1.0355656,3208.5,3208.2,1.05576206]
[1641608577838,1.0355656,3208.5,3208.3,1.29247503]
[1641608578039,1.0355656,3208.7,3208.4,0.260952]
[1641608578239,1.0355656,3208.7,3208.5,1.43833658]
[1641608578639,1.0355656,3208.7,3208.6,0.260952]
[1641608578841,1.18462817,3208.7,3208.6,1.085852]
[1641608579039,0.14906257,3208.7,3208.6,1.085852]
[1641608580244,0.14906257,3208.7,3208.6,0.8249]
[1641608580442,0.14906257,3208.7,3208.5,1.43833658]
[1641608580642,1.764788,3208.6,3208.5,1.43833658]
[1641608581742,0.264788,3208.6,3208.5,1.43833658]
[1641608582142,0.93646674,3208.6,3208.5,1.43833658]
[1641608584042,0.67167874,3208.6,3208.5,1.43833658]
[1641608584443,0.14906257,3208.6,3208.5,1.43833658]
[1641608584643,0.14906257,3208.6,3208.5,1.69928858]
[1641608585745,0.14906257,3208.6,3208.5,1.43833658]
[1641608586546,1.03661135,3208.6,3208.5,1.43833658]
[1641608587447,0.78984957,3208.7,3208.5,1.43833658]
[1641608587647,0.14906257,3208.6,3208.5,1.43833658]
[1641608588649,0.14906257,3208.6,3208.5,1.57974667]
[1641608591753,0.41385057,3208.6,3208.5,1.57974667]
[1641608593156,1.70868072,3208.6,3208.5,1.57974667]
[1641608594456,1.44389272,3208.6,3208.5,1.57974667]
[1641608596760,0.14906257,3208.6,3208.5,1.57974667]
[1641608601369,1.44389272,3208.7,3208.5,1.57974667]
[1641608602072,1.44389272,3208.7,3208.6,0.14141009]
[1641608603171,0.14906257,3208.7,3208.6,0.14141009]
[1641608605776,1.64906257,3208.7,3208.6,0.14141009]
[1641608605973,1.64906257,3208.7,3208.5,1.43833658]
[1641608605974,13.34,3208.6,3207.9,1.05974675]
[1641608606178,1.5,3208.0,3207.9,1.05974675]
[1641608606372,18.19889037,3208.0,3207.9,1.05974675]
[1641608606574,18.19889037,3208.0,3207.4,1.58962013]
[1641608606775,1.5,3207.8,3207.4,1.58962013]
[1641608606973,1.5,3207.6,3207.4,1.58962013]
[1641608607174,4.00958,3207.5,3207.4,1.58962013]
[1641608607474,17.34958,3207.5,3207.3,1.06099505]
[1641608607674,50.92238557,3207.4,3207.3,1.06099505]
[1641608608876,50.92238557,3207.4,3207.3,1.06721369]
[1641608609277,51.07144814,3207.4,3207.3,1.06721369]
[1641608611081,50.92238557,3207.4,3207.3,1.06721369]
[1641608620091,52.48074132,3207.4,3207.3,1.06721369]
[1641608620295,52.21595332,3207.4,3207.3,1.06721369]
[1641608621092,52.48074132,3207.4,3207.3,1.06721369]
[1641608622993,1.55835575,3207.4,3207.3,1.06721369]
[1641608623193,4.00958,3207.5,3207.3,1.06721369]
[1641608623396,1.03446314,3207.7,3207.3,2.56721369]
[1641608623596,1.03446314,3207.7,3207.4,0.260952]
[1641608623796,1.03446314,3207.9,3207.4,0.260952]
[1641608625200,2.00479,3207.9,3207.4,0.260952]
[1641608626200,2.00479,3207.9,3207.5,0.14101834]
[1641608626398,2.00479,3207.9,3207.5,0.97591834]
[1641608626601,2.00479,3207.9,3207.6,0.260952]
[1641608626799,2.00479,3207.9,3207.6,0.40197034]
[1641608627200,2.00479,3207.9,3207.7,0.14101834]
[1641608627401,2.00479,3207.9,3207.7,0.89329571]
[1641608627802,2.00479,3207.9,3207.8,0.260952]
[1641608629104,2.00479,3207.9,3207.7,0.89329571]
[1641608630306,2.00479,3207.9,3207.7,1.15424771]
[1641608636214,2.78131479,3207.9,3207.7,1.15424771]
[1641608636615,2.78131479,3207.9,3207.7,0.89329571]
[1641608636818,0.264788,3207.8,3207.7,0.89329571]
[1641608637218,2.78131479,3207.9,3207.7,1.15424771]
[1641608638418,2.00479,3207.9,3207.7,1.15424771]
[1641608640219,2.00479,3207.9,3207.8,0.14105594]
[1641608644927,0.77652479,3208.1,3207.7,1.15424771]
[1641608648734,0.77652479,3208.0,3207.7,1.15424771]
[1641608648934,0.77652479,3208.0,3207.9,1.5]
[1641608649135,0.21658332,3208.2,3208.0,0.260952]
[1641608649434,0.21658332,3208.2,3208.0,2.265742]
[1641608649634,0.21658332,3208.2,3208.0,3.765742]
[1641608649835,1.03446314,3208.4,3208.1,0.1410757]
[1641608650234,1.03446314,3208.5,3208.2,0.260952]
[1641608650434,1.03446314,3208.5,3208.2,1.33654061]
[1641608651236,0.21085224,3208.6,3208.2,1.33654061]
[1641608651434,0.264788,3208.5,3208.2,1.33654061]
[1641608651734,0.264788,3208.5,3208.2,1.07558861]
[1641608653937,1.03446314,3208.6,3208.2,1.07558861]
[1641608654137,1.03446314,3208.6,3208.3,0.260952]
[1641608654940,0.21192082,3208.6,3208.3,0.260952]
[1641608656840,0.21192082,3208.7,3208.3,0.260952]
[1641608664351,0.905575,3208.6,3208.2,1.07558861]
[1641608665154,0.264788,3208.6,3208.3,0.14105248]
[1641608668256,2.59211495,3208.8,3208.3,0.14105248]
[1641608668456,1.29361416,3209.1,3208.7,1.5]
[1641608668659,1.29361416,3209.1,3209.0,1.5]
[1641608668860,1.55334841,3209.3,3209.0,1.760952]
[1641608669058,1.94168551,3209.6,3209.2,1.5]
[1641608669459,1.94168551,3209.6,3209.3,0.260952]
[1641608669658,3.23614251,3210.0,3209.3,0.260952]
[1641608670262,3.23614251,3210.0,3209.3,0.40200448]
[1641608670460,0.78313484,3209.5,3209.3,0.260952]
[1641608670660,2.57095175,3210.1,3209.4,1.5]
[1641608670860,2.57095175,3210.1,3209.5,0.260952]
[1641608671559,2.00479,3210.1,3209.7,2.00479]
[1641608671762,0.14440033,3210.0,3209.8,0.260952]
[1641608673061,2.00479,3210.1,3209.8,0.260952]
[1641608676365,2.269578,3210.1,3209.7,3.14573908]
[1641608676566,2.00479,3210.1,3209.7,3.14573908]
[1641608678969,0.03,3210.3,3209.9,1.5]
[1641608679268,0.03,3210.3,3210.2,1.5]
[1641608679468,0.03,3210.3,3210.2,2.3868]
[1641608679668,1.30246758,3210.6,3210.2,4.652542]
[1641608679870,1.30246758,3210.6,3210.4,1.5]
[1641608680269,1.30246758,3210.7,3210.5,0.260952]
[1641608680469,1.5629611,3211.0,3210.6,1.5]
[1641608680667,1.5629611,3211.0,3210.9,1.5]
[1641608680870,1.98366749,3211.2,3210.9,2.3495]
[1641608681269,1.98366749,3211.2,3210.9,0.8495]
[1641608681670,1.98366749,3211.2,3211.1,4.00958]
[1641608681870,13.604788,3211.1,3210.7,1.03107504]
[1641608682072,1.5,3210.9,3210.7,1.03107504]
[1641608682273,0.264788,3210.8,3210.7,1.03107504]
[1641608682879,0.262788,3210.8,3210.7,1.03107504]
[1641608684076,0.39896235,3210.8,3210.7,1.03107504]
[1641608684277,0.39896235,3210.8,3210.7,0.74407015]
[1641608686479,1.89896235,3210.8,3210.7,0.74407015]
[1641608686679,1.89896235,3210.8,3210.7,7.015e-05]
[1641608687179,0.39896235,3210.8,3210.7,7.015e-05]
[1641608687683,0.13617435,3210.8,3210.7,7.015e-05]
[1641608689285,0.40096235,3210.8,3210.7,7.015e-05]
[1641608689489,16.02356235,3210.8,3210.7,7.015e-05]
[1641608689789,18.02835235,3210.8,3210.7,7.015e-05]
[1641608689985,19.5850706,3210.8,3210.7,7.015e-05]
[1641608691388,20.8884481,3210.8,3209.9,2.00479]
[1641608691685,1.5,3210.6,3210.0,1.24746584]
[1641608691886,0.264788,3210.5,3210.0,1.24746584]
[1641608692588,1.5,3210.2,3210.0,1.24746584]
[1641608692788,0.264788,3210.1,3210.0,1.24746584]
[1641608692987,0.895888,3210.1,3208.8,34.6005]
[1641608693188,1.5,3209.5,3208.1,34.86722791]
[1641608693390,0.264788,3209.4,3208.7,0.7914038]
[1641608693587,1.5,3209.2,3208.7,1.68882377]
[1641608693788,2.645577,3209.1,3208.7,1.68882377]
[1641608693987,2.910365,3209.1,3208.7,1.68882377]
[1641608694188,2.910365,3209.1,3208.7,0.89741997]
[1641608694588,2.645577,3209.1,3208.7,0.89741997]
[1641608694789,2.645577,3209.1,3208.8,0.262952]
[1641608695491,2.00479,3209.1,3208.8,0.262952]
[1641608695893,2.00479,3209.4,3208.8,0.262952]
[1641608697394,2.00479,3209.4,3208.8,1.762952]
[1641608697594,2.00479,3209.4,3208.8,0.262952]
[1641608697794,2.00479,3209.4,3209.0,2.00479]
[1641608697995,2.00479,3209.4,3209.1,0.262952]
[1641608698596,2.269578,3209.4,3209.1,0.262952]
[1641608698795,3.05766637,3209.2,3208.7,0.89741997]
[1641608698997,1.5,3208.8,3207.8,1.31918024]
[1641608699196,1.5,3208.1,3207.8,1.31918024]
[1641608699395,15.4422,3208.1,3207.8,1.31918024]
[1641608699596,15.706988,3208.1,3208.0,1.11743743]
[1641608699796,16.211778,3208.1,3208.0,1.11743743]
[1641608699994,19.2698351,3208.1,3208.0,1.11743743]
[1641608700198,17.711778,3208.1,3208.0,3.743e-05]
[1641608700396,19.26998077,3208.1,3208.0,3.743e-05]
[1641608700597,5.07076777,3208.1,3208.0,3.743e-05]
[1641608700797,3.512565,3208.1,3208.0,3.743e-05]
[1641608701001,2.60699,3208.1,3208.0,3.743e-05]
[1641608701197,2.00479,3208.1,3208.0,3.743e-05]
[1641608701397,2.00479,3208.1,3208.0,0.26298943]
[1641608705204,2.00479,3208.7,3208.0,0.26298943]
[1641608705805,2.00479,3208.7,3208.2,2.00479]
[1641608706107,0.264788,3208.6,3208.2,2.00479]
[1641608707006,1.182488,3208.6,3208.2,2.00479]
[1641608709206,1.182488,3208.6,3208.2,2.267742]
[1641608710207,1.182488,3208.6,3208.2,2.00479]
[1641608711708,2.00479,3208.7,3208.3,0.262952]
[1641608714012,0.264788,3208.6,3208.2,2.00479]
[1641608714412,33.7391,3209.0,3208.3,1.5]
[1641608714611,34.94907294,3209.1,3208.5,1.5]
[1641608714612,1.04167294,3209.1,3208.5,1.5]
[1641608714811,1.04167294,3209.1,3208.6,0.262952]
[1641608715011,1.68245994,3209.1,3208.6,0.262952]
[1641608715214,1.04167294,3209.0,3208.6,0.262952]
[1641608715414,1.04167294,3209.0,3208.7,0.83146144]
[1641608716016,1.5,3208.8,3207.3,0.031]
[1641608716214,1.97217294,3209.0,3207.3,0.031]
[1641608716419,1.5578338,3208.5,3207.3,0.031]
[1641608716615,0.264788,3208.4,3207.8,0.262952]
[1641608717417,0.264788,3208.4,3207.9,1.54741562]
[1641608717616,0.640787,3208.3,3207.9,1.54741562]
[1641608718016,0.640787,3208.3,3207.9,1.81036762]
[1641608718615,0.264788,3208.2,3207.9,1.54741562]
[1641608721319,0.640787,3208.3,3207.9,1.54741562]
[1641608721718,0.640787,3208.3,3208.0,0.262952]
[1641608723320,0.640787,3208.3,3207.9,1.54741562]
[1641608723819,13.980787,3208.3,3207.9,1.54741562]
[1641608724123,3.05804739,3208.0,3207.9,1.54741562]
[1641608724320,16.39804739,3208.0,3207.7,2.00479]
[1641608724621,0.264788,3207.9,3207.7,1e-08]
[1641608724819,0.264788,3207.9,3207.3,2.03579]
[1641608725320,0.264788,3207.9,3207.3,2.298742]
[1641608725820,1.82290822,3207.9,3207.3,2.298742]
[1641608726020,17.16769822,3207.9,3207.4,1.33189994]
[1641608726420,18.66769822,3207.9,3207.4,1.33189994]
[1641608726621,17.16769822,3207.9,3207.4,1.33189994]
[1641608729923,18.66769822,3207.9,3207.4,1.33189994]
[1641608730723,17.16769822,3207.9,3207.4,1.33189994]
[1641608731332,17.16769822,3207.9,3207.4,1.59485194]
[1641608733333,16.90291022,3207.9,3207.4,1.59485194]
[1641608733533,15.34479,3207.9,3207.4,1.59485194]
[1641608742742,2.00479,3207.9,3207.4,1.59485194]
[1641608743345,15.34479,3207.9,3207.4,1.59485194]
[1641608744945,15.34479,3207.9,3207.4,1.33189994]
[1641608745149,0.264788,3207.8,3207.4,1.33189994]
[1641608749452,0.264788,3207.8,3207.5,0.14103433]
[1641608752555,1.04453637,3207.8,3207.5,0.14103433]
[1641608752853,0.77974837,3207.8,3207.5,0.14103433]
[1641608753752,0.77974837,3207.8,3207.6,0.262952]
[1641608754154,0.77974837,3207.8,3207.7,0.14103433]
[1641608754755,2.78453837,3207.9,3207.7,0.14103433]
[1641608755257,0.77974837,3207.9,3207.8,0.262952]
[1641608755454,1.04167294,3208.1,3207.8,0.262952]
[1641608755655,1.564053,3208.6,3207.8,1.90398633]
[1641608756256,1.564053,3208.6,3207.9,3.38931253]
[1641608756455,1.564053,3208.6,3208.0,0.262952]
[1641608756656,1.564053,3208.6,3208.0,0.40398633]
[1641608757255,2.00479,3208.4,3208.1,0.14103433]
[1641608757456,2.00479,3208.4,3208.2,0.262952]
[1641608757859,2.645577,3208.4,3208.2,0.262952]
[1641608758156,2.645577,3208.4,3208.3,0.14103433]
[1641608758558,2.00479,3208.4,3208.3,0.14103433]
[1641608759961,2.20165079,3208.4,3208.3,0.14103433]
[1641608761260,2.20165079,3208.4,3208.0,0.14103433]
[1641608761560,3.01935079,3208.4,3208.0,0.14103433]
[1641608761861,3.01935079,3208.4,3207.9,3.65226453]
[1641608761862,3.01935079,3208.4,3208.3,0.14103433]
[1641608762061,3.01935079,3208.4,3208.1,0.14103433]
[1641608762261,3.01935079,3208.4,3208.3,0.14103433]
[1641608762562,2.20165079,3208.4,3208.2,0.40398633]
[1641608762966,2.20165079,3208.4,3208.3,0.14103433]
[1641608763467,2.00479,3208.4,3208.3,0.14103433]
[1641608769970,3.05298037,3208.4,3208.3,0.14103433]
[1641608771770,15.609578,3208.4,3208.0,0.14103433]
[1641608771972,15.609578,3208.4,3208.0,0.40398633]
[1641608772673,15.609578,3208.4,3208.1,0.14103433]
[1641608772873,1.04672109,3208.3,3208.1,0.14103433]
[1641608774775,1.04672109,3208.3,3208.0,0.14103433]
[1641608774975,0.264788,3208.2,3207.9,1.38452253]
[1641608775177,14.65150909,3208.2,3207.9,1.38452253]
[1641608775979,13.604788,3208.2,3207.9,1.38452253]
[1641608776378,2.00479,3208.0,3207.9,1.38452253]
[1641608779482,2.20309941,3208.0,3207.9,1.38452253]
[1641608780892,2.46788741,3208.0,3207.9,1.38452253]
[1641608782795,15.80788741,3208.0,3207.9,1.38452253]
[1641608783597,17.30788741,3208.0,3207.5,0.79520459]
[1641608783799,0.640787,3207.9,3207.3,0.031]
[1641608784200,1.55819791,3207.7,3207.3,0.031]
[1641608784399,2.00479,3207.4,3207.3,0.031]
[1641608784600,2.86889,3207.4,3207.3,0.031]
[1641608784799,3.133678,3207.4,3207.3,1.39005713]
[1641608785903,3.33198741,3207.4,3207.3,1.39005713]
[1641608788107,16.67198741,3207.4,3207.3,1.39005713]
[1641608790111,16.67198741,3207.4,3207.3,1.53132684]
[1641608790815,16.67198741,3207.4,3206.6,1.05993841]
[1641608790816,19.73034801,3207.4,3206.6,1.05993841]
[1641608791114,1.5,3207.1,3206.6,1.05993841]
[1641608791414,1.55866422,3206.7,3206.6,1.05993841]
[1641608791615,15.51576422,3206.7,3206.6,1.05993841]
[1641608791912,15.51576422,3206.7,3206.6,1.53953289]
[1641608792513,19.52534422,3206.7,3206.6,1.53953289]
[1641608793115,19.72365363,3206.7,3206.6,1.53953289]
[1641608794416,19.52534422,3206.7,3206.6,1.53953289]
[1641608796118,6.18534422,3206.7,3206.6,1.53953289]
[1641608796520,4.62668,3206.7,3206.6,1.53953289]
[1641608796919,4.62668,3206.7,3206.6,1.80248489]
[1641608797524,4.62668,3206.7,3206.6,1.53953289]
[1641608800429,17.96668,3206.7,3206.6,1.53953289]
[1641608800626,4.62668,3206.7,3206.6,1.53953289]
[1641608802127,4.62668,3206.7,3206.6,1.80248489]
[1641608802725,17.96668,3206.7,3206.6,1.53953289]
[1641608803528,18.231468,3206.7,3206.6,1.53953289]
[1641608804528,4.891468,3206.7,3206.6,1.53953289]
[1641608804730,4.62668,3206.7,3206.6,1.53953289]
[1641608805129,17.96668,3206.7,3206.6,1.53953289]
[1641608806431,4.62668,3206.7,3206.6,1.53953289]
[1641608806632,4.62668,3206.7,3206.6,2.46803289]
[1641608807230,2.62189,3206.7,3206.6,2.46803289]
[1641608807432,2.00479,3206.7,3206.6,2.46803289]
[1641608807832,1.42227697,3207.3,3206.6,2.46803289]
[1641608808736,0.264788,3207.2,3206.6,1.53953289]
[1641608808935,1.073488,3207.2,3206.6,1.53953289]
[1641608809138,2.63190932,3207.2,3206.6,1.53953289]
[1641608809836,13.34,3207.1,3206.6,1.53953289]
[1641608810238,0.264788,3207.0,3206.6,1.53953289]
[1641608812739,2.00479,3206.7,3206.6,1.53953289]
[1641608816748,2.00479,3206.7,3206.6,1.80248489]
[1641608819050,2.00479,3206.7,3206.6,1.53953289]
[1641608819952,2.59719,3206.7,3206.6,1.53953289]
[1641608820151,2.861978,3206.7,3206.6,1.53953289]
[1641608820350,4.42071025,3206.7,3206.6,1.53953289]
[1641608821151,17.76071025,3206.7,3206.6,1.53953289]
[1641608821353,16.201978,3206.7,3206.6,1.53953289]
[1641608824852,2.59719,3206.7,3206.6,1.53953289]
[1641608825054,0.78148997,3206.9,3206.6,3.03953289]
[1641608825353,0.78148997,3206.9,3206.6,1.53953289]
[1641608825553,0.78148997,3206.9,3206.6,1.80248489]
[1641608827157,1.04385762,3207.1,3206.6,1.80248489]
[1641608827357,2.78627997,3207.3,3206.6,1.80248489]
[1641608828356,2.78627997,3207.3,3206.6,2.36258489]
[1641608828958,2.78627997,3207.3,3206.7,1.5]
[1641608829358,2.78627997,3207.3,3206.6,2.09963289]
[1641608829559,2.78627997,3207.3,3206.7,0.262952]
[1641608829959,2.78627997,3207.3,3206.7,0.40392374]
[1641608830261,3.42706697,3207.3,3206.7,0.262952]
[1641608831061,2.78627997,3207.3,3206.7,0.262952]
[1641608831760,0.78148997,3207.1,3206.7,0.262952]
[1641608832363,0.78148997,3207.1,3206.8,0.14107277]
[1641608832863,0.78148997,3207.0,3206.8,0.14107277]
[1641608833161,0.78148997,3207.0,3206.7,0.262952]
[1641608833862,0.78148997,3207.0,3206.8,0.14113136]
[1641608834263,0.78148997,3207.0,3206.9,0.262952]
[1641608834667,0.78148997,3207.0,3206.9,0.40408336]
[1641608834867,0.78148997,3207.1,3206.9,0.40408336]
[1641608835565,0.78148997,3207.1,3207.0,0.14113136]
[1641608835765,0.78148997,3207.1,3206.9,0.262952]
[1641608836766,1.44128997,3207.1,3206.9,0.262952]
[1641608837771,1.44128997,3207.1,3207.0,0.14121162]
[1641608839371,0.89161052,3207.1,3207.0,0.14121162]
[1641608839572,0.23181052,3207.1,3207.0,0.14121162]
[1641608841273,1.27566814,3207.2,3207.0,0.14121162]
[1641608841475,1.27566814,3207.2,3207.1,1.4019835]
[1641608842072,1.27566814,3207.2,3207.1,1.54319512]
[1641608842975,0.23181052,3207.2,3207.1,1.54319512]
[1641608845477,0.23181052,3207.2,3207.1,1.4019835]
[1641608846279,15.77042918,3207.2,3207.1,0.6699894]
[1641608846978,15.13586352,3207.2,3207.1,0.6699894]
[1641608847179,15.79916352,3207.2,3207.1,0.6699894]
[1641608847981,16.43372918,3207.2,3207.1,0.6699894]
[1641608849283,17.93372918,3207.2,3207.1,0.6699894]
[1641608849483,19.75702594,3207.2,3206.3,0.7928717]
[1641608849683,1.5,3207.0,3206.5,1.03262955]
[1641608849883,1.5,3207.0,3206.5,1.17410146]
[1641608850087,0.264788,3206.9,3206.5,1.17410146]
[1641608850284,0.264788,3206.9,3206.5,1.03262955]
[1641608850886,1.55875898,3206.6,3206.5,1.03262955]
[1641608851087,17.34958,3206.6,3206.5,1.03262955]
[1641608851288,17.990367,3206.6,3206.5,1.03262955]
[1641608851487,19.81392613,3206.6,3206.5,1.03262955]
[1641608851888,20.68030231,3206.6,3206.5,1.03262955]
[1641608853791,19.12153118,3206.6,3206.5,1.03262955]
[1641608853992,20.68029259,3206.6,3206.5,1.03262955]
[1641608855801,51.68976111,3206.6,3206.5,1.03262955]
[1641608856004,51.68976111,3206.6,3206.4,1e-08]
[1641608857003,53.6434286,3206.6,3206.4,1e-08]
[1641608857401,53.6434286,3206.6,3206.5,1.02126936]
[1641608858104,53.6434286,3206.6,3206.5,6.936e-05]
[1641608858305,51.45795059,3206.6,3206.5,6.936e-05]
[1641608858504,50.82338493,3206.6,3206.5,6.936e-05]
[1641608861109,50.82338493,3206.6,3205.5,0.031]
[1641608861312,1.5,3206.1,3205.5,0.031]
[1641608861609,0.264788,3206.0,3205.5,0.031]
[1641608861808,0.640787,3205.9,3205.5,0.031]
[1641608862009,0.640787,3205.9,3205.6,1.29983666]
[1641608862210,0.264788,3205.8,3205.6,1.29983666]
[1641608863113,17.34958,3205.7,3205.6,1.29983666]
[1641608864213,18.12792302,3205.7,3205.6,1.29983666]
[1641608866114,17.34958,3205.7,3205.6,1.29983666]
[1641608866715,18.9087959,3205.7,3205.6,1.29983666]
[1641608867217,18.90873999,3205.7,3205.6,1.29983666]
[1641608867416,17.34958,3205.7,3205.6,1.29983666]
[1641608867817,18.90873999,3205.7,3205.6,1.29983666]
[1641608870922,5.56873999,3205.7,3205.6,1.29983666]
[1641608871126,5.56873999,3205.7,3205.6,1.56278866]
[1641608872221,5.83352799,3205.7,3205.6,1.29983666]
[1641608873124,6.61075062,3205.7,3205.6,1.29983666]
[1641608874124,5.05159063,3205.7,3205.6,1.29983666]
[1641608874724,6.61075062,3205.7,3205.6,1.29983666]
[1641608874924,6.11502073,3205.7,3205.6,1.29983666]
[1641608875726,20.00115741,3205.7,3205.6,1.29983666]
[1641608875929,21.50115741,3205.7,3205.6,3.666e-05]
[1641608876126,21.50115741,3205.7,3204.8,33.971]
[1641608876426,21.50115741,3205.7,3204.7,33.6976]
[1641608876427,1.5,3205.1,3204.7,33.6976]
[1641608876624,14.295575,3205.0,3204.7,33.6976]
[1641608877025,14.295575,3205.0,3204.7,34.71920139]
[1641608877224,14.295575,3205.0,3204.7,1.02160139]
[1641608877225,4.00958,3204.8,3204.7,1.02160139]
[1641608877624,17.664368,3204.8,3204.7,1.02160139]
[1641608880325,19.22407272,3204.8,3204.7,1.02160139]
[1641608882126,5.83407272,3204.8,3204.7,1.02160139]
[1641608882529,4.00958,3204.8,3204.7,1.70800139]
[1641608883030,4.00958,3204.8,3204.7,1.97095339]
[1641608883829,4.650367,3204.8,3204.7,1.70800139]
[1641608884030,4.650367,3204.8,3204.7,1.02160139]
[1641608884433,19.59997928,3204.8,3204.7,1.02160139]
[1641608884633,6.20997928,3204.8,3204.7,1.02160139]
[1641608884833,4.650367,3204.8,3204.7,1.02160139]
[1641608886836,4.00958,3204.8,3204.7,1.02160139]
[1641608891245,4.274368,3204.8,3204.7,1.02160139]
[1641608892343,5.83404353,3204.8,3204.7,1.02160139]
[1641608894045,19.22404353,3204.8,3204.7,1.02160139]
[1641608894246,19.22404353,3204.8,3204.7,0.37818646]
[1641608894445,5.83404353,3204.8,3204.7,0.37818646]
[1641608897159,4.00958,3204.8,3204.7,1.17848646]
[1641608897757,4.915155,3204.8,3204.7,1.17848646]
[1641608898157,4.274368,3204.8,3204.7,1.17848646]
[1641608899058,4.00958,3204.8,3204.7,1.17848646]
[1641608899258,2.00479,3205.3,3204.7,1.17848646]
[1641608899558,2.78187802,3205.3,3204.8,0.262952]
[1641608899958,0.640787,3205.2,3204.7,1.17848646]
[1641608900561,0.264788,3205.1,3204.7,1.17848646]
[1641608901161,0.77708802,3205.3,3205.0,1.5]
[1641608901367,0.77708802,3205.3,3205.1,2.00479]
[1641608901560,3.04090736,3205.6,3205.2,0.262952]
[1641608901761,1.03611736,3205.5,3205.4,1.5]
[1641608901962,1.03611736,3205.5,3205.4,2.3342]
[1641608902362,1.03611736,3205.5,3205.4,3.55653449]
[1641608902963,2.00479,3205.6,3205.4,2.05653449]
[1641608903163,1.55924751,3205.5,3205.4,1.22233449]
[1641608903363,15.39479,3205.6,3205.4,1.22233449]
[1641608903564,0.264788,3205.5,3205.4,1.22233449]
[1641608904167,1.59791432,3205.5,3205.4,1.22233449]
[1641608905269,3.15724449,3205.5,3205.4,1.22233449]
[1641608906171,2.12112713,3205.5,3205.4,1.22233449]
[1641608906771,15.51112713,3205.5,3205.4,1.22233449]
[1641608907171,13.95179696,3205.5,3205.4,1.22233449]
[1641608907473,17.51594874,3205.5,3205.4,1.22233449]
[1641608908171,19.01594874,3205.5,3205.4,1.22233449]
[1641608908372,17.51594874,3205.5,3205.4,1.22233449]
[1641608908771,18.81368411,3205.5,3205.4,1.22233449]
[1641608909772,17.51594874,3205.5,3205.4,1.22233449]
[1641608909974,18.18029945,3205.5,3205.4,1.22233449]
[1641608910173,18.18029945,3205.5,3205.4,0.5054042]
[1641608910573,17.51594874,3205.5,3205.4,0.5054042]
[1641608910873,18.8134285,3205.5,3205.4,0.5054042]
[1641608911376,17.51594874,3205.5,3205.4,0.5054042]
[1641608911575,18.18029867,3205.5,3205.4,0.5054042]
[1641608911775,18.91329867,3205.5,3205.4,0.5054042]
[1641608912479,20.47058112,3205.5,3205.4,0.5054042]
[1641608913280,18.91329867,3205.5,3205.4,0.5054042]
[1641608914481,20.41329867,3205.5,3205.4,0.5054042]
[1641608914884,18.91329867,3205.5,3205.4,0.5054042]
[1641608915082,20.47058112,3205.5,3205.4,0.5054042]
[1641608916082,18.91329867,3205.5,3205.4,0.5054042]
[1641608916281,18.18029867,3205.5,3205.4,0.5054042]
[1641608917181,18.88379867,3205.5,3205.4,0.5054042]
[1641608917382,21.94243357,3205.5,3205.4,0.5054042]
[1641608917582,21.94243357,3205.5,3205.4,1e-08]
[1641608918182,18.82443689,3205.5,3205.4,1e-08]
[1641608918783,18.82443689,3205.5,3204.6,0.031]
[1641608918985,1.5,3205.2,3204.7,1.16781373]
[1641608919184,0.264788,3205.1,3204.7,1.16781373]
[1641608919386,13.39,3204.9,3204.7,1.16781373]
[1641608919784,0.264788,3204.8,3204.7,1.16781373]